[Event "XLIV Sevilla Open 2019"]
[Site "Sevilla"]
[Date "2019.01.17"]
[Round "7"]
[White "Xu, Xiangyu"]
[Black "Campora, Daniel H."]
[Result "0-1"]
[ECO "D10"]
[WhiteElo "2567"]
[BlackElo "2417"]
[Annotator "RC"]
[PlyCount "82"]
[EventDate "2019.01.11"]
[EventType "swiss"]
[EventCountry "ESP"]
[SourceTitle "playchess.com"]
[Source "ChessBase"]
[SourceQuality "1"]
[TimeControl "5400+30"]

1. d4 {[%emt 0:00:00]} d5 {[%emt 0:00:00]} 2. c4 {[%emt 0:00:00]} c6 {[%emt 0:00:04]} 3. cxd5 {[%emt 0:00:00]} cxd5 {[%emt 0:00:05]} 4. Bf4 {[%emt 0:00:00]} Nc6 {[%emt 0:01:12]} 5. e3 {[%emt 0:00:03]} Nf6 {[%emt 0:04:22]} 6. Nc3 {[%emt 0:00:20]} e6 {[%emt 0:00:56]} 7. Bd3 {[%emt 0:00:07]} Be7 {[%emt 0:00:09]} 8. Rc1 {[%emt 0:00:30]} O-O {[%emt 0:00:13]} 9. h3 {[%emt 0:00:04]} b6 {[%emt 0:07:34]} 10. Nf3 {[%emt 0:03:37]} Bb7 {[%emt 0:00:20]} 11. O-O {[%emt 0:01:04]} Rc8 {[%emt 0:02:18]} 12. a3 {[%emt 0:03:18]} a6 {[%emt 0:15:33]} 13. Na4 {[%emt 0:06:35]} Nd7 {[%emt 0:13:22]} 14. b4 {[%emt 0:01:21]} f6 {[%emt 0:13:53]} 15. Bg3 {[%emt 0:01:04]} Na7 {[%emt 0:10:58]} 16. Qe2 {[%emt 0:03:02]} Bc6 {[%emt 0:03:27]} 17. Bxa6 {[%emt 0:00:37]} Bxa4 {[%emt 0:00:35]} 18. Bxc8 {[%emt 0:00:08]} Bb5 {[%emt 0:00:14]} 19. Qc2 {[%emt 0:00:59]} Qxc8 {[%emt 0:00:55]} 20. Rfe1 {[%emt 0:01:48]} Qxc2 {[%emt 0:02:43]} 21. Rxc2 {[%emt 0:00:02]} Bc4 {[%emt 0:00:17]} 22. e4 Kf7 {[%emt 0:02:06]} 23. exd5 {[%emt 0:02:25]} exd5 {[%emt 0:00:22]} 24. Rc3 {[%emt 0:00:02]} Ra8 {[%emt 0:01:22]} 25. Rce3 {[%emt 0:06:04]} Bf8 {[%emt 0:00:10]} 26. Re6 {[%emt 0:00:04]} Nb5 {[%emt 0:00:39]} 27. Rc6 {[%emt 0:00:11]} Rxa3 {[%emt 0:01:18]} 28. Rc8 {[%emt 0:00:04]} Bxb4 {[%emt 0:01:25]} 29. Rb1 {[%emt 0:00:55]} Bd6 {[%emt 0:05:34]} 30. Nd2 {[%emt 0:01:27]} Bxg3 {[%emt 0:01:19]} 31. fxg3 {[%emt 0:00:06]} Bd3 {[%emt 0:01:59]} 32. Re1 {[%emt 0:00:01]} Ra2 {[%emt 0:00:29]} 33. Rd8 {[%emt 0:01:13]} Nf8 {[%emt 0:00:57]} 34. Nf3 {[%emt 0:00:26]} Be4 {[%emt 0:00:20]} 35. Rc1 {[%emt 0:00:58]} Ne6 {[%emt 0:01:13]} 36. Rd7+ {[%emt 0:00:04]} Kg6 {[%emt 0:00:06]} 37. Nh4+ {[%emt 0:00:07]} Kh6 {[%emt 0:00:07]} 38. Rc6 {[%emt 0:00:52]} Nbxd4 {[%emt 0:01:32]} 39. Rxb6 {[%emt 0:00:02]} Nc5 {[%emt 0:01:29]} 40. Re7 {[%emt 0:00:31]} Nd3 {[%emt 0:01:59]} 41. Rbb7 {[%emt 0:04:19]} g5 {[%emt 0:03:08]} 0-1

[Event "XLIV Sevilla Open 2019"]
[Site "Sevilla"]
[Date "2019.01.17"]
[Round "7"]
[White "Grigoryan, Karen H."]
[Black "Das, Arghyadip"]
[Result "0-1"]
[ECO "A08"]
[WhiteElo "2557"]
[BlackElo "2431"]
[Annotator "ChessBase"]
[PlyCount "100"]
[EventDate "2019.01.11"]
[EventType "swiss"]
[EventCountry "ESP"]
[SourceTitle "playchess.com"]
[Source "ChessBase"]
[SourceQuality "1"]
[TimeControl "5400+30"]

1. Nf3 {[%emt 0:00:23]} d5 {[%emt 0:00:00]} 2. g3 {[%emt 0:00:12]} c5 {[%emt 0:00:00]} 3. Bg2 {[%emt 0:01:03]} Nc6 {[%emt 0:00:01]} 4. O-O {[%emt 0:00:09]} e5 {[%emt 0:00:04]} 5. d3 {[%emt 0:00:04]} Nf6 {[%emt 0:00:08]} 6. Nbd2 {[%emt 0:03:38]} Be7 {[%emt 0:01:13]} 7. e4 {[%emt 0:00:15]} O-O {[%emt 0:06:51]} 8. exd5 {[%emt 0:02:48]} Nxd5 {[%emt 0:00:19]} 9. Re1 {[%emt 0:00:05]} f6 {[%emt 0:00:17]} 10. c3 {[%emt 0:00:39]} Nc7 {[%emt 0:03:09]} 11. Nb3 {[%emt 0:01:50]} Be6 {[%emt 0:07:05]} 12. Be3 {[%emt 0:15:23]} b6 {[%emt 0:04:22]} 13. d4 {[%emt 0:00:46]} exd4 {[%emt 0:07:11]} 14. Bf4 {[%emt 0:04:58]} Bd6 {[%emt 0:19:52]} 15. Nfxd4 {[%emt 0:06:34]} cxd4 {[%emt 0:05:31]} 16. Bxc6 {[%emt 0:00:29]} Bxf4 {[%emt 0:00:13]} 17. Bxa8 {[%emt 0:02:00]} Qxa8 {[%emt 0:01:17]} 18. gxf4 {[%emt 0:00:47]} dxc3 {[%emt 0:00:19]} 19. bxc3 {[%emt 0:01:21]} Bh3 {[%emt 0:01:37]} 20. f3 {[%emt 0:00:26]} Ne6 {[%emt 0:02:06]} 21. f5 {[%emt 0:15:54]} Ng5 {[%emt 0:16:44]} 22. Nd4 {[%emt 0:00:13]} Rd8 {[%emt 0:00:13]} 23. Qd3 {[%emt 0:03:42]} Qd5 {[%emt 0:10:21]} 24. Re2 {[%emt 0:00:27]} Nf7 {[%emt 0:00:52]} 25. Qe4 {[%emt 0:01:29]} Ne5 {[%emt 0:00:15]} 26. Qxd5+ {[%emt 0:00:33]} Rxd5 {[%emt 0:00:02]} 27. f4 {[%emt 0:14:51]} Nd3 {[%emt 0:03:01]} 28. Re3 {[%emt 0:03:35]} Nxf4 {[%emt 0:00:11]} 29. Rf3 {[%emt 0:00:18]} g5 {[%emt 0:00:18]} 30. fxg6 {[%emt 0:00:06]} Rg5+ {[%emt 0:00:22]} 31. Kf2 {[%emt 0:00:20]} Rg2+ {[%emt 0:02:18]} 32. Ke3 {[%emt 0:00:10]} Nd5+ {[%emt 0:00:20]} 33. Ke4 {[%emt 0:00:18]} Rxh2 {[%emt 0:00:09]} 34. gxh7+ {[%emt 0:00:29]} Kxh7 {[%emt 0:00:02]} 35. Kxd5 {[%emt 0:00:10]} Bg2 {[%emt 0:00:04]} 36. Kc4 {[%emt 0:00:34]} Bxf3 {[%emt 0:00:05]} 37. Nxf3 {[%emt 0:00:04]} Rh5 {[%emt 0:00:15]} 38. Nd4 {[%emt 0:00:21]} Kg6 {[%emt 0:00:15]} 39. Re1 {[%emt 0:02:03]} Kf7 {[%emt 0:00:42]} 40. a4 {[%emt 0:02:45]} Rc5+ {[%emt 0:00:26]} 41. Kb4 {[%emt 0:00:20]} f5 {[%emt 0:01:13]} 42. Rf1 {[%emt 0:05:29]} Kf6 {[%emt 0:00:55]} 43. Rxf5+ {[%emt 0:00:28]} Rxf5 {[%emt 0:00:05]} 44. Nxf5 {[%emt 0:00:04]} Kxf5 {[%emt 0:00:24]} 45. Kb5 {[%emt 0:00:08]} Ke6 {[%emt 0:03:27]} 46. Ka6 {[%emt 0:00:06]} Kd6 {[%emt 0:00:45]} 47. Kxa7 {[%emt 0:00:08]} Kc6 {[%emt 0:00:31]} 48. Kb8 {[%emt 0:00:12]} Kd6 {[%emt 0:00:12]} 49. Kb7 {[%emt 0:00:11]} Kc5 {[%emt 0:00:03]} 50. c4 {[%emt 0:00:23]} Kd4 0-1

[Event "XLIV Sevilla Open 2019"]
[Site "Sevilla"]
[Date "2019.01.17"]
[Round "7"]
[White "Vasquez Schroeder, Rodrigo"]
[Black "Lei, Tingjie"]
[Result "1/2-1/2"]
[ECO "D02"]
[WhiteElo "2499"]
[BlackElo "2447"]
[Annotator "ChessBase"]
[PlyCount "80"]
[EventDate "2019.01.11"]
[EventType "swiss"]
[EventCountry "ESP"]
[SourceTitle "playchess.com"]
[Source "ChessBase"]
[SourceQuality "1"]
[TimeControl "5400+30"]

1. Nf3 {[%emt 0:00:00]} d5 {[%emt 0:06:20]} 2. d4 {[%emt 0:00:00]} Nf6 {[%emt 0:00:09]} 3. Bf4 {[%emt 0:00:02]} c5 {[%emt 0:03:22]} 4. e3 {[%emt 0:00:45]} Nc6 {[%emt 0:00:35]} 5. c3 {[%emt 0:01:19]} Qb6 {[%emt 0:03:19]} 6. Qb3 {[%emt 0:01:33]} c4 {[%emt 0:01:52]} 7. Qc2 {[%emt 0:00:41]} Bf5 {[%emt 0:02:35]} 8. Qc1 {[%emt 0:00:06]} h6 {[%emt 0:03:33]} 9. h3 {[%emt 0:00:20]} e6 {[%emt 0:00:21]} 10. Nbd2 {[%emt 0:00:30]} Rc8 {[%emt 0:00:36]} 11. Be2 {[%emt 0:01:28]} Be7 {[%emt 0:02:28]} 12. O-O {[%emt 0:00:36]} O-O {[%emt 0:03:10]} 13. Bd1 {[%emt 0:07:38]} Qd8 {[%emt 0:05:09]} 14. a4 {[%emt 0:04:59]} Bd6 {[%emt 0:05:35]} 15. Bxd6 {[%emt 0:01:57]} Qxd6 {[%emt 0:00:05]} 16. Bc2 {[%emt 0:00:07]} Rfe8 {[%emt 0:05:00]} 17. Re1 {[%emt 0:00:48]} Bxc2 {[%emt 0:04:57]} 18. Qxc2 {[%emt 0:00:04]} a6 {[%emt 0:00:52]} 19. e4 {[%emt 0:02:20]} Nxe4 {[%emt 0:00:39]} 20. Nxe4 {[%emt 0:00:52]} dxe4 {[%emt 0:00:05]} 21. Rxe4 {[%emt 0:01:23]} b5 {[%emt 0:03:13]} 22. axb5 {[%emt 0:02:32]} axb5 {[%emt 0:00:04]} 23. Ne5 {[%emt 0:03:17]} Nxe5 {[%emt 0:00:26]} 24. Rxe5 {[%emt 0:00:11]} Ra8 {[%emt 0:02:18]} 25. Rae1 {[%emt 0:01:27]} Reb8 {[%emt 0:00:08]} 26. Qe4 {[%emt 0:01:26]} Ra2 {[%emt 0:07:09]} 27. d5 {[%emt 0:11:54]} exd5 {[%emt 0:10:37]} 28. Rxd5 {[%emt 0:00:08]} Qb6 {[%emt 0:02:23]} 29. Qb1 {[%emt 0:10:04]} Ra7 {[%emt 0:04:53]} 30. Qf5 {[%emt 0:04:32]} Rab7 {[%emt 0:08:02]} 31. Rd7 {[%emt 0:02:24]} Rxd7 {[%emt 0:01:13]} 32. Qxd7 {[%emt 0:00:05]} Qd8 {[%emt 0:00:35]} 33. Re7 {[%emt 0:12:23]} Qxd7 {[%emt 0:00:14]} 34. Rxd7 {[%emt 0:00:05]} Re8 {[%emt 0:00:07]} 35. Kf1 {[%emt 0:01:21]} Re5 {[%emt 0:00:06]} 36. Rd4 {[%emt 0:04:56]} g5 {[%emt 0:01:24]} 37. f4 {[%emt 0:02:03]} gxf4 {[%emt 0:00:23]} 38. Rxf4 {[%emt 0:00:29]} Kg7 {[%emt 0:00:04]} 39. Rd4 {[%emt 0:00:18]} Kg6 {[%emt 0:00:21]} 40. Kf2 {[%emt 0:00:06]} h5 {[%emt 0:00:25]} 1/2-1/2

[Event "XLIV Sevilla Open 2019"]
[Site "Sevilla"]
[Date "2019.01.17"]
[Round "7"]
[White "Iniyan, P."]
[Black "Blanco Acevedo, Cristobal Jose"]
[Result "1-0"]
[ECO "D53"]
[WhiteElo "2456"]
[BlackElo "2397"]
[Annotator "ChessBase"]
[PlyCount "123"]
[EventDate "2019.01.11"]
[EventType "swiss"]
[EventCountry "ESP"]
[SourceTitle "playchess.com"]
[Source "ChessBase"]
[SourceQuality "1"]
[TimeControl "5400+30"]

1. d4 {[%emt 0:00:04]} Nf6 {[%emt 0:09:34]} 2. c4 {[%emt 0:00:10]} e6 {[%emt 0:00:10]} 3. Nc3 {[%emt 0:00:07]} d5 {[%emt 0:00:35]} 4. Bg5 {[%emt 0:00:53]} Be7 {[%emt 0:00:18]} 5. e3 {[%emt 0:00:11]} c6 {[%emt 0:00:57]} 6. Nf3 {[%emt 0:00:16]} Nbd7 {[%emt 0:00:19]} 7. Rc1 {[%emt 0:00:29]} h6 {[%emt 0:01:29]} 8. Bh4 {[%emt 0:02:42]} g5 {[%emt 0:02:02]} 9. Bg3 {[%emt 0:00:18]} Nh5 {[%emt 0:00:21]} 10. Be5 {[%emt 0:10:26]} f6 {[%emt 0:01:32]} 11. Bd3 {[%emt 0:06:37]} Kf8 {[%emt 0:05:04]} 12. Bg3 {[%emt 0:05:27]} Kg7 {[%emt 0:03:24]} 13. a3 {[%emt 0:14:03]} Nxg3 {[%emt 0:02:31]} 14. hxg3 {[%emt 0:00:08]} Nf8 {[%emt 0:03:42]} 15. Qc2 {[%emt 0:12:53]} Bd7 {[%emt 0:03:22]} 16. cxd5 {[%emt 0:14:30]} cxd5 {[%emt 0:00:53]} 17. e4 {[%emt 0:00:07]} dxe4 {[%emt 0:04:00]} 18. Bxe4 {[%emt 0:00:08]} g4 {[%emt 0:02:14]} 19. Nd2 {[%emt 0:02:03]} f5 {[%emt 0:03:01]} 20. Bxb7 {[%emt 0:01:06]} Rb8 {[%emt 0:00:27]} 21. Ba6 {[%emt 0:00:07]} Qb6 {[%emt 0:00:29]} 22. Qd3 {[%emt 0:00:07]} Ng6 {[%emt 0:01:59]} 23. b4 {[%emt 0:05:31]} Bg5 {[%emt 0:02:32]} 24. Rc2 {[%emt 0:04:58]} e5 {[%emt 0:01:25]} 25. Nb3 {[%emt 0:00:30]} e4 {[%emt 0:06:24]} 26. Qc4 {[%emt 0:05:04]} e3 {[%emt 0:05:58]} 27. Nc5 {[%emt 0:01:07]} exf2+ {[%emt 0:01:55]} 28. Kxf2 {[%emt 0:00:54]} f4 {[%emt 0:03:00]} 29. Nxd7 {[%emt 0:01:44]} fxg3+ {[%emt 0:00:11]} 30. Ke1 {[%emt 0:00:20]} Rbe8+ {[%emt 0:01:14]} 31. Ne2 {[%emt 0:00:10]} Qd6 {[%emt 0:01:44]} 32. Qc7 {[%emt 0:00:12]} Qxc7 {[%emt 0:10:34]} 33. Rxc7 {[%emt 0:00:08]} Re7 {[%emt 0:00:05]} 34. Nc5 {[%emt 0:00:21]} Rxc7 {[%emt 0:01:00]} 35. Ne6+ {[%emt 0:00:05]} Kf6 {[%emt 0:00:36]} 36. Nxc7 {[%emt 0:00:09]} Nh4 {[%emt 0:00:10]} 37. Nd5+ {[%emt 0:01:12]} Kg7 {[%emt 0:00:04]} 38. Nxg3 {[%emt 0:02:12]} Re8+ {[%emt 0:00:36]} 39. Kf2 {[%emt 0:00:31]} Rf8+ {[%emt 0:00:05]} 40. Ke2 {[%emt 0:00:39]} Nxg2 {[%emt 0:00:18]} 41. Nh5+ {[%emt 0:00:20]} Kh8 {[%emt 0:00:16]} 42. Rg1 {[%emt 0:01:05]} Re8+ {[%emt 0:00:09]} 43. Kd1 {[%emt 0:01:52]} Nh4 {[%emt 0:00:26]} 44. Rxg4 {[%emt 0:00:17]} Nf3 {[%emt 0:00:02]} 45. Be2 {[%emt 0:00:38]} Nh4 {[%emt 0:00:36]} 46. Ndf4 {[%emt 0:03:31]} Nf5 {[%emt 0:00:21]} 47. Rxg5 {[%emt 0:00:16]} hxg5 {[%emt 0:00:07]} 48. Ng6+ {[%emt 0:00:04]} Kh7 {[%emt 0:00:05]} 49. Nf6+ {[%emt 0:00:06]} Kxg6 {[%emt 0:00:03]} 50. Nxe8 {[%emt 0:00:06]} Nxd4 {[%emt 0:00:04]} 51. Nd6 {[%emt 0:00:12]} Kf6 {[%emt 0:00:35]} 52. Nb5 {[%emt 0:00:13]} Nc6 {[%emt 0:00:07]} 53. Bf3 {[%emt 0:00:36]} Ne5 {[%emt 0:00:00]} 54. Bd5 {[%emt 0:00:58]} Nd3 {[%emt 0:00:04]} 55. Nxa7 {[%emt 0:00:26]} Ke5 {[%emt 0:00:04]} 56. Bg2 {[%emt 0:01:29]} g4 {[%emt 0:00:05]} 57. b5 {[%emt 0:00:21]} Nb2+ {[%emt 0:00:20]} 58. Kc2 {[%emt 0:00:22]} Nc4 {[%emt 0:00:04]} 59. Kb3 {[%emt 0:00:04]} Ne3 {[%emt 0:00:15]} 60. b6 {[%emt 0:00:15]} Kd6 {[%emt 0:00:10]} 61. Nb5+ {[%emt 0:00:06]} Kd7 {[%emt 0:00:05]} 62. b7 {[%emt 0:00:07]} 1-0

[Event "XLIV Sevilla Open 2019"]
[Site "Sevilla"]
[Date "2019.01.17"]
[Round "7"]
[White "Starostits, Ilmars"]
[Black "Priyanka Nutakki"]
[Result "1-0"]
[ECO "A46"]
[WhiteElo "2442"]
[BlackElo "2195"]
[Annotator "NA"]
[PlyCount "65"]
[EventDate "2019.01.11"]
[EventType "swiss"]
[EventCountry "ESP"]
[SourceTitle "playchess.com"]
[Source "ChessBase"]
[SourceQuality "1"]
[TimeControl "5400+30"]

1. d4 {[%emt 0:00:00]} e6 {[%emt 0:00:00]} 2. Nf3 {[%emt 0:00:00]} Nf6 {[%emt 0:00:00]} 3. e3 {[%emt 0:00:00]} c5 {[%emt 0:00:16]} 4. Bd3 {[%emt 0:00:00]} b6 {[%emt 0:00:30]} 5. O-O {[%emt 0:00:03]} Bb7 {[%emt 0:00:06]} 6. Nbd2 {[%emt 0:00:24]} Be7 {[%emt 0:01:10]} 7. b3 {[%emt 0:00:06]} O-O {[%emt 0:00:26]} 8. Bb2 {[%emt 0:00:03]} cxd4 {[%emt 0:02:00]} 9. exd4 {[%emt 0:00:04]} d6 {[%emt 0:03:46]} 10. Re1 {[%emt 0:00:19]} Nbd7 {[%emt 0:00:48]} 11. Nf1 {[%emt 0:01:17]} Rc8 {[%emt 0:02:53]} 12. c4 {[%emt 0:00:45]} Re8 {[%emt 0:04:36]} 13. Ng3 {[%emt 0:02:55]} Nf8 {[%emt 0:01:16]} 14. d5 {[%emt 0:04:26]} exd5 {[%emt 0:11:21]} 15. Nf5 {[%emt 0:01:55]} Ne6 {[%emt 0:12:57]} 16. cxd5 {[%emt 0:00:52]} Bxd5 {[%emt 0:00:17]} 17. Ba6 {[%emt 0:21:12]} Rc5 {[%emt 0:09:11]} 18. b4 {[%emt 0:02:23]} Bxf3 {[%emt 0:04:57]} 19. Qxf3 {[%emt 0:00:37]} Ng5 {[%emt 0:04:51]} 20. Qd3 {[%emt 0:00:37]} Rc7 {[%emt 0:02:03]} 21. Bb5 {[%emt 0:05:00]} Rf8 {[%emt 0:00:26]} 22. Nxg7 {[%emt 0:16:34]} Kxg7 {[%emt 0:01:10]} 23. Qg3 {[%emt 0:06:25]} Kh6 {[%emt 0:01:08]} 24. h4 {[%emt 0:00:57]} Rg8 {[%emt 0:11:40]} 25. hxg5+ {[%emt 0:06:11]} Rxg5 {[%emt 0:00:02]} 26. Qh3+ {[%emt 0:01:37]} Kg7 {[%emt 0:06:35]} 27. Bd3 {[%emt 0:01:27]} Kg8 {[%emt 0:03:50]} 28. Qh6 {[%emt 0:02:55]} Rg6 {[%emt 0:05:18]} 29. Bxg6 {[%emt 0:00:07]} fxg6 {[%emt 0:00:06]} 30. Re6 {[%emt 0:04:19]} Rc2 {[%emt 0:01:32]} 31. Bxf6 {[%emt 0:00:59]} Bxf6 {[%emt 0:00:05]} 32. Rae1 {[%emt 0:00:03]} Be5 {[%emt 0:00:34]} 33. Rxg6+ {[%emt 0:00:49]} 1-0

[Event "XLIV Sevilla Open 2019"]
[Site "Sevilla"]
[Date "2019.01.17"]
[Round "7"]
[White "Dhulipalla Bala Chandra Prasa"]
[Black "Pereira Figueroa, Manuel"]
[Result "1-0"]
[ECO "A48"]
[WhiteElo "2341"]
[BlackElo "2108"]
[Annotator "NA"]
[PlyCount "49"]
[EventDate "2019.01.11"]
[EventType "swiss"]
[EventCountry "ESP"]
[SourceTitle "playchess.com"]
[Source "ChessBase"]
[SourceQuality "1"]
[TimeControl "5400+30"]

1. d4 {[%emt 0:00:00]} Nf6 {[%emt 0:00:00]} 2. Nf3 {[%emt 0:00:29]} g6 {[%emt 0:00:06]} 3. Bf4 {[%emt 0:00:03]} Bg7 {[%emt 0:00:33]} 4. e3 {[%emt 0:00:03]} O-O {[%emt 0:01:10]} 5. Be2 {[%emt 0:00:03]} d6 {[%emt 0:00:09]} 6. O-O {[%emt 0:00:05]} b6 {[%emt 0:01:32]} 7. h3 {[%emt 0:00:06]} c5 {[%emt 0:00:25]} 8. a4 {[%emt 0:00:10]} a6 {[%emt 0:00:41]} 9. Nbd2 {[%emt 0:00:19]} Bb7 {[%emt 0:00:51]} 10. c3 {[%emt 0:00:06]} Nbd7 {[%emt 0:00:45]} 11. Bh2 {[%emt 0:00:04]} Ne4 {[%emt 0:00:49]} 12. Re1 {[%emt 0:03:22]} Nxd2 {[%emt 0:07:52]} 13. Nxd2 {[%emt 0:00:10]} Nf6 {[%emt 0:01:00]} 14. Bd3 {[%emt 0:03:20]} Re8 {[%emt 0:04:56]} 15. e4 {[%emt 0:01:13]} cxd4 {[%emt 0:01:19]} 16. cxd4 {[%emt 0:00:54]} Nd7 {[%emt 0:03:42]} 17. Nf3 {[%emt 0:09:55]} Qb8 {[%emt 0:04:17]} 18. Qb3 {[%emt 0:02:33]} h6 {[%emt 0:02:27]} 19. Rac1 {[%emt 0:06:44]} e5 {[%emt 0:02:16]} 20. Bc4 {[%emt 0:01:16]} Rf8 {[%emt 0:00:16]} 21. dxe5 {[%emt 0:05:32]} dxe5 {[%emt 0:02:53]} 22. Nh4 {[%emt 0:02:36]} Nc5 {[%emt 0:05:18]} 23. Qxb6 {[%emt 0:00:39]} Nxe4 {[%emt 0:02:12]} 24. Nxg6 {[%emt 0:02:51]} Re8 {[%emt 0:00:18]} 25. Bxf7+ {[%emt 0:00:19]} 1-0

[Event "XLIV Sevilla Open 2019"]
[Site "Sevilla"]
[Date "2019.01.17"]
[Round "7"]
[White "Esquivias Quintero, Luis Manuel"]
[Black "Tadevosyan, Aspet"]
[Result "1-0"]
[ECO "B90"]
[WhiteElo "2293"]
[BlackElo "2105"]
[Annotator "NA"]
[PlyCount "83"]
[EventDate "2019.01.11"]
[EventType "swiss"]
[EventCountry "ESP"]
[SourceTitle "playchess.com"]
[Source "ChessBase"]
[SourceQuality "1"]
[TimeControl "5400+30"]

1. e4 {[%emt 0:00:00]} c5 {[%emt 0:00:00]} 2. Nf3 {[%emt 0:00:00]} d6 {[%emt 0:00:00]} 3. d4 {[%emt 0:00:00]} cxd4 {[%emt 0:00:05]} 4. Nxd4 {[%emt 0:00:00]} Nf6 {[%emt 0:00:11]} 5. Nc3 {[%emt 0:00:03]} a6 {[%emt 0:00:12]} 6. Be3 {[%emt 0:00:09]} e5 {[%emt 0:00:14]} 7. Nf3 {[%emt 0:00:04]} Qc7 {[%emt 0:00:11]} 8. a4 {[%emt 0:00:04]} Be7 {[%emt 0:00:27]} 9. Be2 {[%emt 0:01:22]} h6 {[%emt 0:06:11]} 10. a5 {[%emt 0:02:49]} O-O {[%emt 0:01:27]} 11. O-O {[%emt 0:00:26]} Be6 {[%emt 0:02:41]} 12. Nd5 {[%emt 0:08:01]} Nxd5 {[%emt 0:01:19]} 13. exd5 {[%emt 0:00:04]} Bf5 {[%emt 0:03:04]} 14. c4 Nd7 {[%emt 0:01:59]} 15. b4 {[%emt 0:16:36]} Bh7 {[%emt 0:04:56]} 16. Nd2 {[%emt 0:02:18]} f5 17. f3 {[%emt 0:00:47]} Nf6 {[%emt 0:27:33]} 18. Qb3 {[%emt 0:05:21]} Kh8 {[%emt 0:01:06]} 19. Rac1 {[%emt 0:00:56]} Qd7 {[%emt 0:05:59]} 20. Kh1 {[%emt 0:14:03]} g5 {[%emt 0:02:45]} 21. Rfd1 {[%emt 0:08:40]} g4 {[%emt 0:09:15]} 22. Bxh6 {[%emt 0:08:24]} Rg8 {[%emt 0:01:40]} 23. c5 {[%emt 0:06:09]} gxf3 {[%emt 0:08:04]} 24. Nxf3 {[%emt 0:02:34]} Ng4 {[%emt 0:07:22]} 25. Be3 {[%emt 0:00:44]} Nxe3 {[%emt 0:01:36]} 26. Qxe3 {[%emt 0:00:08]} f4 {[%emt 0:00:46]} 27. c6 {[%emt 0:04:20]} bxc6 {[%emt 0:03:03]} 28. dxc6 {[%emt 0:00:05]} Qxc6 {[%emt 0:07:43]} 29. Rxc6 {[%emt 0:03:58]} fxe3 {[%emt 0:00:02]} 30. Rxa6 {[%emt 0:00:51]} Rxa6 {[%emt 0:00:16]} 31. Bxa6 {[%emt 0:00:15]} Rb8 {[%emt 0:01:18]} 32. b5 {[%emt 0:00:15]} e2 {[%emt 0:01:19]} 33. Rd2 {[%emt 0:01:18]} e4 {[%emt 0:00:15]} 34. Rxe2 {[%emt 0:00:34]} exf3 {[%emt 0:00:08]} 35. Rxe7 {[%emt 0:00:06]} f2 {[%emt 0:00:32]} 36. b6 {[%emt 0:02:10]} Rc8 {[%emt 0:00:11]} 37. h3 {[%emt 0:00:18]} Rc1+ {[%emt 0:03:56]} 38. Kh2 {[%emt 0:00:04]} f1=Q {[%emt 0:00:40]} 39. Bxf1 {[%emt 0:00:06]} Rxf1 {[%emt 0:00:01]} 40. a6 {[%emt 0:00:12]} Ra1 {[%emt 0:00:44]} 41. b7 {[%emt 0:00:15]} Rb1 {[%emt 0:00:42]} 42. a7 {[%emt 0:00:06]} 1-0

[Event "XLIV Sevilla Open 2019"]
[Site "Sevilla"]
[Date "2019.01.17"]
[Round "7"]
[White "Diaz Castro, Sergio"]
[Black "Sobrino Forte, Alvaro"]
[Result "1/2-1/2"]
[ECO "A06"]
[WhiteElo "2252"]
[BlackElo "1955"]
[Annotator "NA"]
[PlyCount "60"]
[EventDate "2019.01.11"]
[EventType "swiss"]
[EventCountry "ESP"]
[SourceTitle "playchess.com"]
[Source "ChessBase"]
[SourceQuality "1"]
[TimeControl "5400+30"]

1. Nf3 {[%emt 0:00:00]} d5 {[%emt 0:00:00]} 2. b3 {[%emt 0:00:36]} Bg4 {[%emt 0:00:00]} 3. g3 {[%emt 0:00:23]} Bxf3 {[%emt 0:00:49]} 4. exf3 {[%emt 0:00:06]} Nf6 {[%emt 0:00:04]} 5. f4 {[%emt 0:00:36]} e6 {[%emt 0:01:06]} 6. Bg2 {[%emt 0:00:31]} g6 {[%emt 0:00:08]} 7. Bb2 {[%emt 0:00:17]} Bg7 {[%emt 0:00:12]} 8. O-O {[%emt 0:00:38]} O-O {[%emt 0:00:30]} 9. d4 {[%emt 0:13:51]} Nbd7 {[%emt 0:01:37]} 10. c4 {[%emt 0:04:30]} c6 {[%emt 0:02:03]} 11. Nd2 {[%emt 0:00:44]} a5 {[%emt 0:01:15]} 12. c5 {[%emt 0:07:51]} b6 {[%emt 0:03:46]} 13. cxb6 {[%emt 0:01:46]} Qxb6 {[%emt 0:00:28]} 14. Nf3 {[%emt 0:18:50]} Rfc8 {[%emt 0:06:46]} 15. Ne5 {[%emt 0:03:14]} c5 {[%emt 0:07:48]} 16. dxc5 {[%emt 0:09:23]} Nxc5 {[%emt 0:02:02]} 17. Bd4 {[%emt 0:06:12]} Qb5 {[%emt 0:03:44]} 18. Re1 {[%emt 0:03:18]} Nfd7 {[%emt 0:03:22]} 19. Rc1 {[%emt 0:01:58]} Nxe5 {[%emt 0:05:09]} 20. fxe5 {[%emt 0:00:05]} Nd7 {[%emt 0:08:11]} 21. Re3 {[%emt 0:07:56]} Qb7 {[%emt 0:07:13]} 22. f4 {[%emt 0:02:49]} Bf8 {[%emt 0:00:38]} 23. Rec3 {[%emt 0:00:50]} Bb4 {[%emt 0:02:52]} 24. Rxc8+ {[%emt 0:03:19]} Rxc8 {[%emt 0:00:07]} 25. Bf1 {[%emt 0:01:53]} Bc5 {[%emt 0:01:22]} 26. Bxc5 {[%emt 0:00:14]} Rxc5 {[%emt 0:00:07]} 27. Rxc5 {[%emt 0:00:14]} Nxc5 {[%emt 0:00:03]} 28. Kh1 {[%emt 0:00:19]} Kg7 {[%emt 0:00:06]} 29. Kg1 {[%emt 0:00:09]} Kg8 {[%emt 0:00:05]} 30. Kh1 {[%emt 0:00:14]} Kg7 {[%emt 0:00:05]} 1/2-1/2

[Event "XLIV Sevilla Open 2019"]
[Site "Sevilla"]
[Date "2019.01.17"]
[Round "7"]
[White "Rodriguez Del Cerro, Ricardo"]
[Black "Polivanov, Anatoliy"]
[Result "1/2-1/2"]
[ECO "A10"]
[WhiteElo "2139"]
[BlackElo "2374"]
[Annotator "NA"]
[PlyCount "60"]
[EventDate "2019.01.11"]
[EventType "swiss"]
[EventCountry "ESP"]
[SourceTitle "playchess.com"]
[Source "ChessBase"]
[SourceQuality "1"]
[TimeControl "5400+30"]

1. c4 {[%emt 0:01:31]} f5 {[%emt 0:00:52]} 2. e3 {[%emt 0:01:48]} Nf6 {[%emt 0:00:18]} 3. Nf3 {[%emt 0:03:46]} e6 {[%emt 0:00:23]} 4. b3 {[%emt 0:00:11]} Be7 {[%emt 0:00:08]} 5. Be2 {[%emt 0:00:33]} O-O {[%emt 0:00:06]} 6. O-O {[%emt 0:00:05]} d6 {[%emt 0:00:54]} 7. d4 {[%emt 0:00:24]} Ne4 {[%emt 0:01:15]} 8. Bb2 {[%emt 0:00:30]} Nd7 {[%emt 0:03:47]} 9. Nbd2 {[%emt 0:04:41]} d5 {[%emt 0:08:38]} 10. a4 {[%emt 0:16:03]} a5 {[%emt 0:02:08]} 11. Ne1 {[%emt 0:15:42]} c6 {[%emt 0:09:52]} 12. f3 {[%emt 0:06:24]} Nxd2 {[%emt 0:00:45]} 13. Qxd2 {[%emt 0:00:05]} Bb4 {[%emt 0:07:29]} 14. Bc3 {[%emt 0:03:51]} Bd6 {[%emt 0:00:13]} 15. c5 {[%emt 0:11:16]} Bc7 {[%emt 0:02:24]} 16. Nd3 {[%emt 0:01:52]} Qh4 {[%emt 0:14:55]} 17. f4 {[%emt 0:02:21]} Nf6 {[%emt 0:00:23]} 18. Qe1 {[%emt 0:01:55]} Qh6 {[%emt 0:02:16]} 19. Ne5 {[%emt 0:01:47]} g5 {[%emt 0:06:07]} 20. fxg5 {[%emt 0:03:25]} Qxg5 {[%emt 0:00:04]} 21. Rf3 {[%emt 0:00:07]} Kh8 {[%emt 0:16:58]} 22. Rg3 {[%emt 0:00:22]} Qh6 {[%emt 0:00:05]} 23. Rh3 {[%emt 0:00:16]} Qg5 {[%emt 0:06:33]} 24. Rg3 {[%emt 0:00:24]} Qh6 {[%emt 0:00:04]} 25. Rh3 {[%emt 0:00:04]} Qg5 {[%emt 0:00:03]} 26. Rg3 {[%emt 0:00:29]} Qh6 {[%emt 0:00:01]} 27. Rh3 {[%emt 0:00:06]} Qg5 {[%emt 0:00:03]} 28. Rg3 {[%emt 0:00:06]} Qh6 {[%emt 0:00:03]} 29. Rh3 {[%emt 0:00:04]} Qg5 {[%emt 0:00:01]} 30. Rg3 {[%emt 0:00:06]} Qh6 {[%emt 0:00:02]} 1/2-1/2